fUSD/lending_fUSD_20240519
["ID","MTS","AMOUNT","RATE_DAILY","PERIOD"]
[327443814,1716077468841,-620.55,0.00028219,2]
[327443815,1716077468850,-500.0,0.00028219,2]
[327443816,1716077468859,-500.0,0.00028219,2]
[327443817,1716077468868,-500.0,0.00028219,2]
[327443818,1716077468877,-500.0,0.00028219,2]
[327443819,1716077468887,-500.0,0.00028219,2]
[327443820,1716077468895,-500.0,0.00028219,2]
[327443821,1716077468905,-788.47,0.00028219,2]
[327443822,1716077468914,-702.58,0.00028219,2]
[327443823,1716077468923,-406.69,0.00028219,2]
[327443824,1716077468932,-717.76,0.00028219,2]
[327443825,1716077468941,-1107.18,0.00028219,2]
[327443826,1716077468950,-500.0,0.00028219,2]
[327443827,1716077468960,-500.0,0.00028219,2]
[327443828,1716077468969,-151.0,0.00028219,7]
[327443829,1716077468978,-1418.57,0.00028219,2]
[327443830,1716077468987,-500.0,0.00028219,2]
[327443831,1716077468996,-500.0,0.00028219,2]
[327443832,1716077469005,-548.41,0.00028219,2]
[327443833,1716077469014,-500.0,0.00028219,2]
[327443834,1716077469024,-500.0,0.00028219,2]
[327443835,1716077469033,-731.89,0.00028219,2]
[327443836,1716077469042,-654.67,0.00028219,2]
[327443837,1716077469052,-500.0,0.00028219,2]
[327443838,1716077469061,-500.0,0.00028219,2]
[327443839,1716077469071,-575.3,0.00028219,2]
[327443840,1716077469080,-500.0,0.00028219,2]
[327443841,1716077469090,-500.0,0.00028219,2]
[327443842,1716077469100,-500.0,0.00028219,2]
[327443843,1716077469109,-753.87,0.00028219,2]
[327443844,1716077469119,-558.06,0.00028219,2]
[327443845,1716077469128,-500.0,0.00028219,2]
[327443846,1716077469138,-500.0,0.00028219,2]
[327443847,1716077469147,-592.45,0.00028219,2]
[327443848,1716077469156,-500.0,0.00028219,2]
[327443849,1716077469165,-205.19156,0.00028219,2]
[327443850,1716077469174,-1470.72,0.00028219,2]
[327443851,1716077469183,-500.0,0.00028219,2]
[327443852,1716077469193,-735.2,0.00028219,2]
[327443853,1716077469202,-897.8,0.00028219,2]
[327443854,1716077469211,-500.0,0.00028219,2]
[327443855,1716077469220,-500.0,0.00028219,2]
[327443856,1716077469229,-500.0,0.00028219,2]
[327443857,1716077469239,-1194.38,0.00028219,2]
[327443858,1716077469249,-894.37,0.00028219,2]
[327443859,1716077469258,-567.91,0.00028219,2]
[327443860,1716077469267,-1413.9,0.00028219,2]
[327443861,1716077469276,-838.92,0.00028219,2]
[327443862,1716077469285,-500.0,0.00028219,2]
[327443863,1716077469294,-579.0,0.00028219,2]
[327443864,1716077469303,-500.0,0.00028219,2]
[327443865,1716077469313,-1047.05,0.00028219,2]
[327443866,1716077469322,-1288.52,0.00028219,2]
[327443867,1716077469332,-151.0,0.00028219,7]
[327443868,1716077469341,-512.22,0.00028219,2]
[327443869,1716077469350,-737.25,0.00028219,2]
[327443870,1716077469360,-151.0,0.00028219,7]
[327443871,1716077469369,-151.824883,0.00028219,7]
[327443872,1716077469378,-973.22,0.00028219,2]
[327443873,1716077469388,-1081.43,0.00028219,2]
[327443874,1716077469398,-500.0,0.00028219,2]
[327443875,1716077469407,-539.38,0.00028219,2]
[327443876,1716077469416,-500.0,0.00028219,2]
[327443877,1716077469427,-500.0,0.00028219,2]
[327443878,1716077469436,-500.0,0.00028219,2]
[327443879,1716077469445,-771.25,0.00028219,2]
[327443880,1716077469454,-151.0,0.00028219,7]
[327443881,1716077469463,-620.78,0.00028219,2]
[327443882,1716077469472,-500.0,0.00028219,2]
[327443883,1716077469481,-500.0,0.00028219,2]
[327443884,1716077469490,-500.0,0.00028219,2]
[327443885,1716077469500,-500.0,0.00028219,2]
[327443886,1716077469509,-500.0,0.00028219,2]
[327443887,1716077469519,-501.17,0.00028219,2]
[327443888,1716077469528,-500.0,0.00028219,2]
[327443889,1716077469538,-500.0,0.00028219,2]
[327443890,1716077469547,-500.0,0.00028219,2]
[327443891,1716077469556,-500.0,0.00028219,2]
[327443892,1716077469565,-500.0,0.00028219,2]
[327443893,1716077469574,-500.0,0.00028219,2]
[327443894,1716077469583,-500.0,0.00028219,2]
[327443895,1716077469593,-500.0,0.00028219,2]
[327443896,1716077469602,-862.09,0.00028219,2]
[327443897,1716077469611,-500.0,0.00028219,2]
[327443898,1716077469621,-500.0,0.00028219,2]
[327443899,1716077469630,-500.0,0.00028219,2]
[327443900,1716077469640,-500.0,0.00028219,2]
[327443901,1716077469650,-596.95,0.00028219,2]
[327443902,1716077469659,-881.6,0.00028219,2]
[327443903,1716077469668,-720.84,0.00028219,2]
[327443904,1716077469681,-500.0,0.00028219,2]
[327443905,1716077469691,-662.13,0.00028219,2]
[327443906,1716077469701,-500.0,0.00028219,2]
[327443907,1716077469711,-500.0,0.00028219,2]
[327443908,1716077469722,-500.0,0.00028219,2]
[327443909,1716077469732,-2975.3,0.00028219,2]
[327443910,1716077469743,-500.0,0.00028219,2]
[327443911,1716077469754,-151.0,0.00028219,7]
[327443912,1716077469765,-500.0,0.00028219,2]
[327443913,1716077469775,-500.0,0.00028219,2]
[327443914,1716077469785,-500.0,0.00028219,2]
[327443915,1716077469794,-1121.07,0.00028219,2]
[327443916,1716077469804,-500.0,0.00028219,2]
[327443917,1716077469813,-500.0,0.00028219,2]
[327443918,1716077469823,-500.0,0.00028219,2]
[327443919,1716077469832,-875.83,0.00028219,2]
[327443920,1716077469842,-500.0,0.00028219,2]
[327443921,1716077469852,-500.0,0.00028219,2]
[327443922,1716077469862,-500.0,0.00028219,2]
[327443923,1716077469871,-1130.37,0.00028219,2]
[327443924,1716077469881,-695.7,0.00028219,2]
[327443925,1716077469890,-1392.95,0.00028219,2]
[327443926,1716077469899,-500.0,0.00028219,2]
[327443927,1716077469909,-500.0,0.00028219,2]
[327443928,1716077469918,-698.81,0.00028219,2]
[327443929,1716077469927,-500.0,0.00028219,2]
[327443930,1716077469937,-791.91,0.00028219,2]
[327443931,1716077469947,-500.0,0.00028219,2]
[327443932,1716077469956,-1456.87,0.00028219,2]
[327443933,1716077469965,-267.30608525,0.00028219,2]
[327443934,1716077469974,-151.0,0.00028219,7]
[327443935,1716077469983,-1314.57,0.00028219,2]
[327443936,1716077469992,-2275.44,0.00028219,2]
[327443937,1716077470002,-574.86,0.00028219,2]
[327443938,1716077470011,-500.0,0.00028219,2]
[327443939,1716077470020,-511.71,0.00028219,2]
[327443940,1716077470029,-500.0,0.00028219,2]
[327443941,1716077470039,-2814.42,0.00028219,2]
[327443942,1716077470048,-500.0,0.00028219,2]
[327443943,1716077470057,-501.32,0.00028219,2]
[327443944,1716077470066,-500.0,0.00028219,2]
[327443945,1716077470075,-1303.92,0.00028219,2]
[327443946,1716077470084,-810.63,0.00028219,2]
[327443947,1716077470095,-500.0,0.00028219,2]
[327443948,1716077470103,-4678.13,0.00028219,2]
[327443949,1716077470112,-500.0,0.00028219,2]
[327443950,1716077470121,-2780.12,0.00028219,2]
[327443951,1716077470130,-516.01,0.00028219,2]
[327443952,1716077470139,-887.4,0.00028219,2]
[327443953,1716077470148,-500.0,0.00028219,2]
[327443954,1716077470157,-151.0,0.00028219,7]
[327443955,1716077470166,-514.0,0.00028219,2]
[327443956,1716077470175,-725.59,0.00028219,2]
[327443957,1716077470184,-500.0,0.00028219,2]
[327443958,1716077470193,-1154.5,0.00028219,2]
[327443959,1716077470202,-500.0,0.00028219,2]
[327443960,1716077470211,-1503.52,0.00028219,2]
[327443961,1716077470220,-500.0,0.00028219,2]
[327443962,1716077470230,-1444.2,0.00028219,2]
[327443963,1716077470239,-500.0,0.00028219,2]
[327443964,1716077470247,-1032.28,0.00028219,2]
[327443965,1716077470257,-500.0,0.00028219,2]
[327443966,1716077470266,-500.0,0.00028219,2]
[327443967,1716077470275,-500.0,0.00028219,2]
[327443968,1716077470284,-173.94340239,0.00028219,2]
[327443969,1716077470293,-1522.9,0.00028219,2]
[327443970,1716077470303,-561.95,0.00028219,2]
[327443971,1716077470312,-7233.9,0.00028219,2]
[327443972,1716077470321,-776.17,0.00028219,2]
[327443973,1716077470330,-500.0,0.00028219,2]
[327443974,1716077470339,-500.0,0.00028219,2]
[327443975,1716077470348,-605.79,0.00028219,2]
[327443976,1716077470357,-1300.37,0.00028219,2]
[327443977,1716077470366,-1051.93,0.00028219,2]
[327443978,1716077470375,-500.0,0.00028219,2]
[327443979,1716077470384,-151.0,0.00028219,7]
[327443980,1716077470394,-6024.88,0.00028219,2]
[327443981,1716077470403,-500.0,0.00028219,2]
[327443982,1716077470413,-5592.85,0.00028219,2]
[327443983,1716077470422,-151.0,0.00028219,7]
[327443984,1716077470431,-500.0,0.00028219,2]
[327443985,1716077470441,-1220.15,0.00028219,2]
[327443986,1716077470450,-11547.64,0.00028219,2]
[327443987,1716077470460,-500.0,0.00028219,2]
[327443988,1716077470469,-500.0,0.00028219,2]
[327443989,1716077470479,-151.0,0.00028219,7]
[327443990,1716077470488,-964.95,0.00028219,2]
[327443991,1716077470497,-500.0,0.00028219,2]
[327443992,1716077470506,-500.0,0.00028219,2]
[327443993,1716077470516,-730.61,0.00028219,2]
[327443994,1716077470525,-152.27017,0.00028219,7]
[327443995,1716077470534,-684.37,0.00028219,2]
[327443996,1716077470721,-2185.64,0.00028219,2]
[327443997,1716077470731,-523.440221,0.00028219,7]
[327443998,1716077470741,-500.0,0.00028219,2]
[327443999,1716077470751,-1150.67,0.00028219,2]
[327444000,1716077470763,-500.0,0.00028219,2]
[327444001,1716077470772,-500.0,0.00028219,2]
[327444002,1716077470782,-922.42,0.00028219,2]
[327444003,1716077470791,-523.440221,0.00028219,7]
[327444004,1716077470801,-714.21,0.00028219,2]
[327444005,1716077470810,-667.74,0.00028219,2]
[327444006,1716077470819,-500.0,0.00028219,2]
[327444007,1716077470829,-624.56,0.00028219,2]
[327444008,1716077470838,-500.0,0.00028219,2]
[327444009,1716077470849,-500.0,0.00028219,2]
[327444010,1716077470859,-253.455997,0.00028219,7]
[327444011,1716077470868,-500.0,0.00028219,2]
[327444012,1716077470878,-785.83,0.00028219,2]
[327444013,1716077470888,-500.0,0.00028219,2]
[327444014,1716077470898,-525.79174631,0.00028219,2]
[327444015,1716077470908,-1993.35,0.00028219,2]
[327444016,1716077470918,-253.455997,0.00028219,7]
[327444017,1716077470927,-500.0,0.00028219,2]
[327444018,1716077470937,-500.0,0.00028219,2]
[327444019,1716077470947,-500.0,0.00028219,2]
[327444020,1716077470957,-593.18,0.00028219,2]
[327444021,1716077470967,-555.98,0.00028219,2]
[327444022,1716077470976,-500.0,0.00028219,2]
[327444023,1716077470986,-708.12,0.00028219,2]
[327444024,1716077470996,-1034.98,0.00028219,2]
[327444025,1716077471005,-500.0,0.00028219,2]
[327444026,1716077471015,-819.64,0.00028219,2]
[327444027,1716077471024,-500.0,0.00028219,2]
[327444028,1716077471034,-1062.72,0.00028219,2]
[327444029,1716077471043,-500.0,0.00028219,2]
[327444030,1716077471053,-614.07,0.00028219,2]
[327444031,1716077471062,-186.431819,0.00028219,7]
[327444032,1716077471071,-500.0,0.00028219,2]
[327444033,1716077471081,-609.38,0.00028219,2]
[327444034,1716077471091,-500.0,0.00028219,2]
[327444035,1716077471103,-6648.46,0.00028219,2]
[327444036,1716077471115,-1688.51,0.00028219,2]
[327444037,1716077471124,-564.19,0.00028219,2]
[327444038,1716077471134,-151.0,0.00028219,7]
[327444039,1716077471143,-186.431819,0.00028219,7]
[327444040,1716077471153,-1089.3,0.00028219,2]
[327444041,1716077471162,-1349.04,0.00028219,2]
[327444042,1716077471171,-151.0,0.00028219,7]
[327444043,1716077471181,-846.78,0.00028219,2]
[327444044,1716077471191,-1553.34,0.00028219,2]
[327444045,1716077471201,-830.23,0.00028219,2]
[327444046,1716077471210,-860.44,0.00028219,2]
[327444047,1716077471219,-1308.68,0.00028219,2]
[327444048,1716077471229,-608.58,0.00028219,2]
[327444049,1716077471238,-812.28,0.00028219,2]
[327444050,1716077471247,-500.0,0.00028219,2]
[327444051,1716077471256,-500.0,0.00028219,2]
[327444052,1716077471265,-151.0,0.00028219,7]
[327444053,1716077471274,-500.0,0.00028219,2]
[327444054,1716077471283,-500.0,0.00028219,2]
[327444055,1716077471292,-792.67,0.00028219,2]
[327444056,1716077471302,-1716.02,0.00028219,2]
[327444057,1716077471312,-613.67,0.00028219,2]
[327444058,1716077471321,-151.0,0.00028219,7]
[327444059,1716077471330,-2023.97,0.00028219,2]
[327444060,1716077471339,-500.0,0.00028219,2]
[327444061,1716077471349,-616.74,0.00028219,2]
[327444062,1716077471358,-151.0,0.00028219,7]
[327444063,1716077471367,-673.43,0.00028219,2]
[327444064,1716077471376,-4593.99,0.00028219,2]
[327444065,1716077471386,-519.79,0.00028219,2]
[327444066,1716077471395,-525.03,0.00028219,2]
[327444067,1716077471404,-151.0,0.00028219,7]
[327444068,1716077471413,-224.890398,0.00028219,7]
[327444069,1716077471423,-500.0,0.00028219,2]
[327444070,1716077471432,-1670.46,0.00028219,2]
[327444071,1716077471441,-703.22,0.00028219,2]
[327444072,1716077471450,-500.0,0.00028219,2]
[327444073,1716077471459,-500.0,0.00028219,2]
[327444074,1716077471469,-500.0,0.00028219,2]
[327444075,1716077471479,-224.890398,0.00028219,7]
[327444076,1716077471489,-936.93,0.00028219,2]
[327444077,1716077471498,-500.0,0.00028219,2]
[327444078,1716077471507,-894.82,0.00028219,2]
[327444079,1716077471517,-500.0,0.00028219,2]
[327444080,1716077471526,-500.0,0.00028219,2]
[327444081,1716077471535,-500.0,0.00028219,2]
[327444082,1716077471545,-500.0,0.00028219,2]
[327444083,1716077471555,-500.0,0.00028219,2]
[327444084,1716077471564,-500.0,0.00028219,2]
[327444085,1716077471574,-695.82,0.00028219,2]
[327444086,1716077471584,-715.76,0.00028219,2]
[327444087,1716077471595,-3124.26,0.00028219,2]
[327444088,1716077471605,-500.0,0.00028219,2]
[327444089,1716077471615,-151.0,0.00028219,7]
[327444090,1716077471624,-510.06,0.00028219,2]
[327444091,1716077471634,-500.0,0.00028219,2]
[327444092,1716077471644,-500.0,0.00028219,2]
[327444093,1716077471653,-1656.39,0.00028219,2]
[327444094,1716077471663,-877.57,0.00028219,2]
[327444095,1716077471672,-500.0,0.00028219,2]
[327444096,1716077471685,-254.18285667,0.00028219,2]
[327444097,1716077471694,-743.1,0.00028219,2]
[327444098,1716077471704,-6564.04,0.00028219,2]
[327444099,1716077471713,-641.49,0.00028219,2]
[327444100,1716077471723,-4260.91,0.00028219,2]
[327444101,1716077471732,-500.0,0.00028219,2]
[327444102,1716077471741,-697.34,0.00028219,2]
[327444103,1716077471750,-2763.02,0.00028219,2]
[327444104,1716077471762,-151.0,0.00028219,7]
[327444105,1716077471772,-858.1,0.00028219,2]
[327444106,1716077471780,-500.0,0.00028219,2]
[327444107,1716077471789,-500.0,0.00028219,2]
[327444108,1716077471799,-1870.09,0.00028219,2]
[327444109,1716077471807,-500.0,0.00028219,2]
[327444110,1716077471816,-151.0,0.00028219,7]
[327444111,1716077471826,-500.0,0.00028219,2]
[327444112,1716077471835,-1489.33,0.00028219,2]
[327444113,1716077471845,-500.0,0.00028219,2]
[327444114,1716077471854,-500.0,0.00028219,2]
[327444115,1716077471864,-624.28,0.00028219,2]
[327444116,1716077471873,-1876.67,0.00028219,2]
[327444117,1716077471883,-151.0,0.00028219,7]
[327444118,1716077471891,-3030.58,0.00028219,2]
[327444119,1716077471901,-151.0,0.00028219,7]
[327444120,1716077471910,-151.0,0.00028219,7]
[327444121,1716077471919,-1754.2,0.00028219,2]
[327444122,1716077471928,-4440.09,0.00028219,2]
[327444123,1716077471938,-500.0,0.00028219,2]
[327444124,1716077471946,-151.0,0.00028219,7]
[327444125,1716077471955,-151.0,0.00028219,7]
[327444126,1716077471965,-500.0,0.00028219,2]
[327444127,1716077471975,-500.0,0.00028219,2]
[327444128,1716077471984,-1659.47,0.00028219,2]
[327444129,1716077471993,-919.75,0.00028219,2]
[327444130,1716077472002,-500.0,0.00028219,2]
[327444131,1716077472011,-796.81,0.00028219,2]
[327444132,1716077472020,-747.95,0.00028219,2]
[327444133,1716077472029,-1492.23,0.00028219,2]
[327444134,1716077472038,-151.0,0.00028219,7]
[327444135,1716077472047,-500.0,0.00028219,2]
[327444136,1716077472056,-4084.75,0.00028219,2]
[327444137,1716077472064,-500.0,0.00028219,2]
[327444138,1716077472074,-500.0,0.00028219,2]
[327444139,1716077472082,-759.03,0.00028219,2]
[327444140,1716077472091,-500.0,0.00028219,2]
[327444141,1716077472101,-500.0,0.00028219,2]
[327444142,1716077472110,-500.0,0.00028219,2]
[327444143,1716077472119,-842.68,0.00028219,2]
[327444144,1716077472128,-1573.17,0.00028219,2]
[327444145,1716077472139,-500.0,0.00028219,2]
[327444146,1716077472149,-500.0,0.00028219,2]
[327444147,1716077472158,-500.0,0.00028219,2]
[327444148,1716077472167,-500.0,0.00028219,2]
[327444149,1716077472177,-1958.77,0.00028219,2]
[327444150,1716077472186,-1661.92,0.00028219,2]
[327444151,1716077472194,-500.0,0.00028219,2]
[327444152,1716077472204,-1716.41,0.00028219,2]
[327444153,1716077472213,-500.0,0.00028219,2]
[327444154,1716077472222,-500.0,0.00028219,2]
[327444155,1716077472231,-682.52,0.00028219,2]
[327444156,1716077472239,-612.02,0.00028219,2]
[327444157,1716077472248,-500.0,0.00028219,2]
[327444158,1716077472257,-500.0,0.00028219,2]
[327444159,1716077472266,-691.49,0.00028219,2]
[327444160,1716077472275,-1225.99,0.00028219,2]
[327444161,1716077472283,-500.0,0.00028219,2]
[327444162,1716077472292,-4495.909897,0.00028219,7]
[327444163,1716077472302,-504.06,0.00028219,2]
[327444164,1716077472311,-1815.65,0.00028219,2]
[327444165,1716077472319,-500.0,0.00028219,2]
[327444166,1716077472329,-2018.48,0.00028219,2]
[327444167,1716077472338,-151.0,0.00028219,7]
[327444168,1716077472347,-1716.75,0.00028219,2]
[327444169,1716077472356,-151.0,0.00028219,7]
[327444170,1716077472365,-980.98,0.00028219,2]
[327444171,1716077472373,-4495.909897,0.00028219,7]
[327444172,1716077472382,-908.4,0.00028219,2]
[327444173,1716077472391,-519.812481,0.00028219,7]
[327444174,1716077472404,-500.0,0.00028219,2]
[327444175,1716077472413,-500.0,0.00028219,2]
[327444176,1716077472422,-151.0,0.00028219,7]
[327444177,1716077472431,-519.812481,0.00028219,7]
[327444178,1716077472440,-1124.01,0.00028219,2]
[327444179,1716077472449,-2424.02,0.00028219,2]
[327444180,1716077472458,-500.0,0.00028219,2]
[327444181,1716077472467,-500.0,0.00028219,2]
[327444182,1716077472476,-1936.72,0.00028219,2]
[327444183,1716077472485,-1249.4,0.00028219,2]
[327444184,1716077472494,-151.0,0.00028219,7]
[327444185,1716077472503,-2000.0,0.00028219,2]
[327444186,1716077472512,-500.0,0.00028219,2]
[327444187,1716077472521,-2316.41,0.00028219,2]
[327444188,1716077472530,-500.0,0.00028219,2]
[327444189,1716077472539,-1024.15,0.00028219,2]
[327444190,1716077472548,-895.6,0.00028219,2]
[327444191,1716077472557,-500.0,0.00028219,2]
[327444192,1716077472566,-500.0,0.00028219,2]
[327444193,1716077472576,-500.0,0.00028219,2]
[327444194,1716077472585,-500.0,0.00028219,2]
[327444195,1716077472595,-709.56,0.00028219,2]
[327444196,1716077472604,-570.19,0.00028219,2]
[327444197,1716077472613,-1154.19,0.00028219,2]
[327444198,1716077472622,-200.0,0.00028219,2]
[327444199,1716077472631,-1378.01,0.00028219,2]
[327444200,1716077472640,-1873.84,0.00028219,2]
[327444201,1716077472649,-503.15,0.00028219,2]
[327444202,1716077472658,-500.0,0.00028219,2]
[327444203,1716077472668,-151.0,0.00028219,7]
[327444204,1716077472680,-500.0,0.00028219,2]
[327444205,1716077472690,-2689.46,0.00028219,2]
[327444206,1716077472699,-842.94,0.00028219,2]
[327444207,1716077472708,-956.07,0.00028219,2]
[327444208,1716077472719,-500.0,0.00028219,2]
[327444209,1716077472728,-500.0,0.00028219,2]
[327444210,1716077472737,-500.0,0.00028219,2]
[327444211,1716077472746,-1409.03,0.00028219,2]
[327444212,1716077472758,-500.0,0.00028219,2]
[327444213,1716077472767,-1542.92,0.00028219,2]
[327444214,1716077472776,-633.54,0.00028219,2]
[327444215,1716077472785,-151.0,0.00028219,7]
[327444216,1716077472795,-4096.02,0.00028219,2]
[327444217,1716077472804,-500.0,0.00028219,2]
[327444218,1716077472813,-2212.12,0.00028219,2]
[327444219,1716077472823,-500.0,0.00028219,2]
[327444220,1716077472831,-695.04,0.00028219,2]
[327444221,1716077472841,-500.0,0.00028219,2]
[327444222,1716077472852,-1365.15,0.00028219,2]
[327444223,1716077472861,-500.0,0.00028219,2]
[327444224,1716077472870,-500.0,0.00028219,2]
[327444225,1716077472879,-500.0,0.00028219,2]
[327444226,1716077472889,-1557.76,0.00028219,2]
[327444227,1716077472899,-500.0,0.00028219,2]
[327444228,1716077472908,-500.0,0.00028219,2]
[327444229,1716077472917,-500.0,0.00028219,2]
[327444230,1716077472926,-157.051908,0.00028448,14]
[327444231,1716077472935,-1000.0,0.00028469,15]
[327444232,1716077472944,-206.8581792,0.00028483,7]
[327444233,1716077472953,-500.0,0.00028492,2]
[327444234,1716077472962,-150.0,0.00028492,2]
[327444235,1716077472971,-361.39,0.00028493,2]
[327444236,1716077472980,-500.0,0.00028493,2]
[327444237,1716077472988,-500.0,0.00028493,2]
[327444238,1716077472997,-500.0,0.00028493,2]
[327444239,1716077473006,-500.0,0.00028493,2]
[327444240,1716077473015,-500.0,0.00028493,2]
[327444241,1716077473023,-500.0,0.00028493,2]
[327444242,1716077473032,-500.0,0.00028493,2]
[327444243,1716077473042,-378.56497685,0.00028493,2]
[327444244,1716077473051,-500.0,0.00028493,2]
[327444245,1716077473060,-500.0,0.00028493,2]
[327444246,1716077473069,-561.71,0.00028493,2]
[327444247,1716077473078,-674.49,0.00028493,2]
[327444248,1716077473087,-702.65,0.00028493,2]
[327444249,1716077473096,-500.0,0.00028493,2]
[327444250,1716077473105,-689.69,0.00028493,2]
[327444251,1716077473114,-500.0,0.00028493,2]
[327444252,1716077473123,-580.84,0.00028493,2]
[327444253,1716077473133,-500.0,0.00028493,2]
[327444254,1716077473288,-500.0,0.00028493,2]
[327444255,1716077473297,-500.0,0.00028493,2]
[327444256,1716077473306,-612.31,0.00028493,2]
[327444257,1716077473315,-155.573948,0.00028493,7]
[327444258,1716077473324,-961.14,0.00028493,2]
[327444259,1716077473333,-151.0,0.00028493,7]
[327444260,1716077473343,-540.22,0.00028493,2]
[327444261,1716077473353,-1047.34,0.00028493,2]
[327444262,1716077473363,-500.0,0.00028493,2]
[327444263,1716077473372,-500.0,0.00028493,2]
[327444264,1716077473381,-500.0,0.00028493,2]
[327444265,1716077473390,-867.44,0.00028493,2]
[327444266,1716077473399,-500.0,0.00028493,2]
[327444267,1716077473408,-500.0,0.00028493,2]
[327444268,1716077473418,-505.05,0.00028493,2]
[327444269,1716077473426,-500.0,0.00028493,2]
[327444270,1716077473435,-513.52345668,0.00028493,2]
[327444271,1716077473444,-500.0,0.00028493,2]
[327444272,1716077473453,-500.0,0.00028493,2]
[327444273,1716077473462,-575.74,0.00028493,2]
[327444274,1716077473471,-500.0,0.00028493,2]
[327444275,1716077473480,-151.0,0.00028493,7]
[327444276,1716077473489,-315.59274987,0.00028493,2]
[327444277,1716077473498,-1013.47,0.00028493,2]
[327444278,1716077473507,-500.0,0.00028493,2]
[327444279,1716077473516,-500.0,0.00028493,2]
[327444280,1716077473525,-500.0,0.00028493,2]
[327444281,1716077473534,-500.0,0.00028493,2]
[327444282,1716077473543,-500.0,0.00028493,2]
[327444283,1716077473552,-501.04,0.00028493,2]
[327444284,1716077473562,-500.0,0.00028493,2]
[327444285,1716077473570,-570.91,0.00028493,2]
[327444286,1716077473579,-500.0,0.00028493,2]
[327444287,1716077473588,-500.0,0.00028493,2]
[327444288,1716077473599,-500.0,0.00028493,2]
[327444289,1716077473608,-781.67,0.00028493,2]
[327444290,1716077473617,-500.0,0.00028493,2]
[327444291,1716077473625,-553.68,0.00028493,2]
[327444292,1716077473634,-500.0,0.00028493,2]
[327444293,1716077473643,-500.0,0.00028493,2]
[327444294,1716077473653,-500.0,0.00028493,2]
[327444295,1716077473662,-500.0,0.00028493,2]
[327444296,1716077473671,-859.88,0.00028493,2]
[327444297,1716077473685,-627.23,0.00028493,2]
[327444298,1716077473694,-644.06,0.00028493,2]
[327444299,1716077473703,-500.0,0.00028493,2]
[327444300,1716077473712,-500.0,0.00028493,2]
[327444301,1716077473723,-500.0,0.00028493,2]
[327444302,1716077473732,-500.0,0.00028493,2]
[327444303,1716077473741,-500.0,0.00028493,2]
[327444304,1716077473750,-500.0,0.00028493,2]
[327444305,1716077473763,-151.0,0.00028493,7]
[327444306,1716077473772,-500.0,0.00028493,2]
[327444307,1716077473781,-840.81,0.00028493,2]
[327444308,1716077473791,-500.0,0.00028493,2]
[327444309,1716077473800,-500.0,0.00028493,2]
[327444310,1716077473809,-151.0,0.00028493,7]
[327444311,1716077473818,-670.91,0.00028493,2]
[327444312,1716077473827,-572.52,0.00028493,2]
[327444313,1716077473836,-500.0,0.00028493,2]